[Event "Titled Tuesday Blitz May 17 Late 2022"]
[White "Grischuk, Alexander"]
[Black "Andreikin, Dmitry"]
[WhiteFideId "4126025"]
[BlackFideId "4158814"]
[WhiteElo "2762"]
[BlackElo "2736"]
[Result "1-0"]
[Round "10"]
[TimeControl "180+1"]
[Date "2022.05.17"]
[WhiteClock "0:00:03"]
[BlackClock "0:00:02"]

1. e4 {[%clk 0:03:00]}  e5 {[%clk 0:03:00]} 2. Nf3 {[%clk 0:03:01]}  Nf6 {[%clk 0:03:00]} 3. Nxe5 {[%clk 0:03:01]}  d6 {[%clk 0:03:01]} 4. Nf3 {[%clk 0:03:01]}  Nxe4 {[%clk 0:03:01]} 5. Nc3 {[%clk 0:03:02]}  Nf6 {[%clk 0:03:01]} 6. d4 {[%clk 0:03:01]}  g6 {[%clk 0:03:02]} 7. Bg5 {[%clk 0:02:48]}  Bg7 {[%clk 0:03:02]} 8. Qe2+ {[%clk 0:02:48]}  Kf8 {[%clk 0:03:00]} 9. O-O-O {[%clk 0:02:45]}  h6 {[%clk 0:03:00]} 10. Be3 {[%clk 0:02:45]}  a6 {[%clk 0:03:00]} 11. Qd2 {[%clk 0:02:34]}  b5 {[%clk 0:03:00]} 12. Bd3 {[%clk 0:02:34]}  Bb7 {[%clk 0:02:58]} 13. Kb1 {[%clk 0:02:31]}  Nbd7 {[%clk 0:02:57]} 14. Rhe1 {[%clk 0:02:28]}  Nb6 {[%clk 0:02:55]} 15. Ne2 {[%clk 0:02:10]}  Nfd5 {[%clk 0:02:49]} 16. Nf4 {[%clk 0:01:58]}  Nc4 {[%clk 0:02:49]} 17. Qe2 {[%clk 0:01:43]}  Qf6 {[%clk 0:02:38]} 18. Nxd5 {[%clk 0:01:41]}  Bxd5 {[%clk 0:02:39]} 19. Bc1 {[%clk 0:01:41]}  a5 {[%clk 0:02:07]} 20. Be4 {[%clk 0:01:32]}  Re8 {[%clk 0:02:02]} 21. Qd3 {[%clk 0:01:32]}  Be6 {[%clk 0:01:52]} 22. Bc6 {[%clk 0:01:06]}  Rb8 {[%clk 0:01:52]} 23. h3 {[%clk 0:00:52]}  Rb6 {[%clk 0:01:02]} 24. Qe4 {[%clk 0:00:50]}  Kg8 {[%clk 0:00:56]} 25. g4 {[%clk 0:00:48]}  a4 {[%clk 0:00:32]} 26. Bd5 {[%clk 0:00:31]}  Bxd5 {[%clk 0:00:20]} 27. Qxd5 {[%clk 0:00:31]}  c6 {[%clk 0:00:20]} 28. Qe4 {[%clk 0:00:30]}  Kh7 {[%clk 0:00:20]} 29. g5 {[%clk 0:00:30]}  Qf5 {[%clk 0:00:19]} 30. Qxf5 {[%clk 0:00:29]}  gxf5 {[%clk 0:00:19]} 31. Re7 {[%clk 0:00:30]}  Rf8 {[%clk 0:00:15]} 32. b3 {[%clk 0:00:24]}  axb3 {[%clk 0:00:13]} 33. axb3 {[%clk 0:00:23]}  Na5 {[%clk 0:00:13]} 34. Bf4 {[%clk 0:00:22]}  c5 {[%clk 0:00:11]} 35. Rd7 {[%clk 0:00:18]}  Nb7 {[%clk 0:00:10]} 36. dxc5 {[%clk 0:00:15]}  Nxc5 {[%clk 0:00:10]} 37. R7xd6 {[%clk 0:00:15]}  Ra8 {[%clk 0:00:11]} 38. Be5 {[%clk 0:00:15]}  Rxd6 {[%clk 0:00:10]} 39. Rxd6 {[%clk 0:00:15]}  Ne4 {[%clk 0:00:11]} 40. Rd7 {[%clk 0:00:11]}  Kg8 {[%clk 0:00:04]} 41. Bxg7 {[%clk 0:00:09]}  Kxg7 {[%clk 0:00:05]} 42. gxh6+ {[%clk 0:00:09]}  Kxh6 {[%clk 0:00:06]} 43. Nd4 {[%clk 0:00:09]}  b4 {[%clk 0:00:06]} 44. Nxf5+ {[%clk 0:00:06]}  Kg5 {[%clk 0:00:05]} 45. Ne3 {[%clk 0:00:06]}  Nxf2 {[%clk 0:00:03]} 46. Rxf7 {[%clk 0:00:05]}  Ne4 {[%clk 0:00:04]} 47. Nd5 {[%clk 0:00:05]}  Rb8 {[%clk 0:00:02]} 48. Kb2 {[%clk 0:00:05]}  Rb5 {[%clk 0:00:02]} 49. Rd7 {[%clk 0:00:04]}  Nc5 {[%clk 0:00:02]} 50. Rd8 {[%clk 0:00:04]}  Ne6 {[%clk 0:00:02]} 51. Rd6 {[%clk 0:00:04]}  Nc5 {[%clk 0:00:02]} 52. Ne3 {[%clk 0:00:04]}  Ne4 {[%clk 0:00:02]} 53. Rd5+ {[%clk 0:00:04]}  Rxd5 {[%clk 0:00:01]} 54. Nxd5 {[%clk 0:00:05]}  Kf5 {[%clk 0:00:02]} 55. Nxb4 {[%clk 0:00:05]}  Nf2 {[%clk 0:00:02]} 56. h4 {[%clk 0:00:06]}  Kg4 {[%clk 0:00:03]} 57. Nd5 {[%clk 0:00:06]}  Kxh4 {[%clk 0:00:03]} 58. b4 {[%clk 0:00:06]}  Kg5 {[%clk 0:00:03]} 59. Kc3 {[%clk 0:00:06]}  Kf5 {[%clk 0:00:03]} 60. Kd4 {[%clk 0:00:06]}  Ke6 {[%clk 0:00:04]} 61. c4 {[%clk 0:00:07]}  Kd6 {[%clk 0:00:02]} 62. b5 {[%clk 0:00:07]}  Ng4 {[%clk 0:00:02]} 63. c5+ {[%clk 0:00:07]}  Kd7 {[%clk 0:00:03]} 64. Nb6+ {[%clk 0:00:06]}  Kc7 {[%clk 0:00:03]} 65. Nd5+ {[%clk 0:00:06]}  Kb8 {[%clk 0:00:03]} 66. c6 {[%clk 0:00:06]}  Nh6 {[%clk 0:00:04]} 67. b6 {[%clk 0:00:05]}  Nf7 {[%clk 0:00:04]} 68. Kc5 {[%clk 0:00:05]}  Ne5 {[%clk 0:00:04]} 69. Ne7 {[%clk 0:00:04]}  Ka8 {[%clk 0:00:03]} 70. Kb5 {[%clk 0:00:02]}  Nf7 {[%clk 0:00:02]} 71. Ka6 {[%clk 0:00:03]}  Nd6 {[%clk 0:00:02]} 72. c7 {[%clk 0:00:03]}  Nc8 {[%clk 0:00:02]} 73. b7# {[%clk 0:00:03]} 1-0


[Site "https://www.chess.com"]

[Event "Titled Tuesday Blitz May 17 Late 2022"]
[White "Kavyev, Ruslan"]
[Black "Miszler, Levente"]
[WhiteFideId "34110981"]
[BlackFideId "763276"]
[WhiteElo "2180"]
[BlackElo "1966"]
[Result "1-0"]
[Round "10"]
[TimeControl "180+1"]
[Date "2022.05.17"]
[WhiteClock "0:00:34"]
[BlackClock "0:00:03"]

1. d4 {[%clk 0:03:00]}  Nf6 {[%clk 0:02:53]} 2. c4 {[%clk 0:02:59]}  e6 {[%clk 0:02:53]} 3. g3 {[%clk 0:02:59]}  d5 {[%clk 0:02:52]} 4. Bg2 {[%clk 0:02:59]}  Be7 {[%clk 0:02:49]} 5. Nf3 {[%clk 0:03:00]}  O-O {[%clk 0:02:49]} 6. Qc2 {[%clk 0:03:00]}  c6 {[%clk 0:02:47]} 7. O-O {[%clk 0:03:00]}  Nbd7 {[%clk 0:02:47]} 8. Nbd2 {[%clk 0:02:59]}  Re8 {[%clk 0:02:40]} 9. e4 {[%clk 0:02:58]}  dxe4 {[%clk 0:02:38]} 10. Nxe4 {[%clk 0:02:59]}  Nxe4 {[%clk 0:02:39]} 11. Qxe4 {[%clk 0:03:00]}  Nf6 {[%clk 0:02:38]} 12. Qe2 {[%clk 0:02:59]}  c5 {[%clk 0:02:29]} 13. Rd1 {[%clk 0:02:56]}  cxd4 {[%clk 0:02:21]} 14. Nxd4 {[%clk 0:02:56]}  Qa5 {[%clk 0:02:09]} 15. Bd2 {[%clk 0:02:44]}  Bb4 {[%clk 0:02:08]} 16. Bxb4 {[%clk 0:02:35]}  Qxb4 {[%clk 0:02:09]} 17. Nb5 {[%clk 0:02:33]}  Rb8 {[%clk 0:01:49]} 18. a3 {[%clk 0:02:14]}  Qe7 {[%clk 0:01:33]} 19. Nxa7 {[%clk 0:02:09]}  Bd7 {[%clk 0:01:31]} 20. b4 {[%clk 0:02:04]}  b6 {[%clk 0:01:26]} 21. Nc6 {[%clk 0:01:50]}  Bxc6 {[%clk 0:01:25]} 22. Bxc6 {[%clk 0:01:51]}  Red8 {[%clk 0:01:25]} 23. Rxd8+ {[%clk 0:01:49]}  Rxd8 {[%clk 0:01:26]} 24. Rd1 {[%clk 0:01:49]}  g6 {[%clk 0:01:25]} 25. Kg2 {[%clk 0:01:45]}  Rc8 {[%clk 0:01:19]} 26. Qf3 {[%clk 0:01:38]}  e5 {[%clk 0:01:14]} 27. b5 {[%clk 0:01:33]}  e4 {[%clk 0:01:08]} 28. Qe3 {[%clk 0:01:33]}  Qc7 {[%clk 0:00:48]} 29. a4 {[%clk 0:01:24]}  h5 {[%clk 0:00:45]} 30. h4 {[%clk 0:01:10]}  Kg7 {[%clk 0:00:43]} 31. Qc3 {[%clk 0:01:07]}  Qe7 {[%clk 0:00:41]} 32. Qd4 {[%clk 0:01:00]}  Rb8 {[%clk 0:00:30]} 33. Qd6 {[%clk 0:00:55]}  Qa7 {[%clk 0:00:24]} 34. Qe5 {[%clk 0:00:51]}  Qxa4 {[%clk 0:00:11]} 35. Qxb8 {[%clk 0:00:49]}  Qxd1 {[%clk 0:00:10]} 36. Qxb6 {[%clk 0:00:43]}  Qf3+ {[%clk 0:00:10]} 37. Kg1 {[%clk 0:00:39]}  Ng4 {[%clk 0:00:05]} 38. Qd4+ {[%clk 0:00:37]}  Kh7 {[%clk 0:00:04]} 39. Bxe4 {[%clk 0:00:37]}  Qb3 {[%clk 0:00:02]} 40. Kg2 {[%clk 0:00:34]}  Qb4 {[%clk 0:00:02]} 41. Bf3 {[%clk 0:00:33]}  Qb3 {[%clk 0:00:01]} 42. Bxg4 {[%clk 0:00:33]}  hxg4 {[%clk 0:00:02]} 43. Qxg4 {[%clk 0:00:33]}  Qc3 {[%clk 0:00:01]} 44. Qe4 {[%clk 0:00:32]}  Kg8 {[%clk 0:00:02]} 45. b6 {[%clk 0:00:32]}  Qb4 {[%clk 0:00:03]} 46. b7 {[%clk 0:00:33]}  Qb6 {[%clk 0:00:02]} 47. Qe8+ {[%clk 0:00:33]}  Kg7 {[%clk 0:00:02]} 48. b8=Q {[%clk 0:00:34]}  Qc6+ {[%clk 0:00:03]} 49. Qxc6 {[%clk 0:00:34]} 1-0


[Site "https://www.chess.com"]

[Event "Titled Tuesday Blitz May 17 Late 2022"]
[White "Keymer, Vincent"]
[Black "Salem, A.R. Saleh"]
[WhiteFideId "12940690"]
[BlackFideId "9301348"]
[WhiteElo "2548"]
[BlackElo "2679"]
[Result "0-1"]
[Round "10"]
[TimeControl "180+1"]
[Date "2022.05.17"]
[WhiteClock "0:00:19"]
[BlackClock "0:00:09"]

1. Nf3 {[%clk 0:03:00]}  Nf6 {[%clk 0:02:57]} 2. c4 {[%clk 0:03:01]}  e6 {[%clk 0:02:46]} 3. Nc3 {[%clk 0:03:01]}  d5 {[%clk 0:02:46]} 4. e3 {[%clk 0:03:01]}  c6 {[%clk 0:02:44]} 5. b3 {[%clk 0:03:01]}  Bd6 {[%clk 0:02:43]} 6. Bb2 {[%clk 0:03:02]}  Nbd7 {[%clk 0:02:42]} 7. Qc2 {[%clk 0:03:02]}  a6 {[%clk 0:02:41]} 8. d4 {[%clk 0:02:58]}  b6 {[%clk 0:02:32]} 9. Bd3 {[%clk 0:02:56]}  Bb7 {[%clk 0:02:32]} 10. O-O {[%clk 0:02:56]}  Rc8 {[%clk 0:02:30]} 11. e4 {[%clk 0:02:51]}  dxe4 {[%clk 0:02:31]} 12. Nxe4 {[%clk 0:02:52]}  Nxe4 {[%clk 0:02:31]} 13. Bxe4 {[%clk 0:02:53]}  Nf6 {[%clk 0:02:31]} 14. c5 {[%clk 0:02:51]}  Nxe4 {[%clk 0:02:19]} 15. Qxe4 {[%clk 0:02:49]}  Be7 {[%clk 0:02:18]} 16. Rfe1 {[%clk 0:02:43]}  O-O {[%clk 0:02:17]} 17. Rad1 {[%clk 0:02:42]}  a5 {[%clk 0:02:11]} 18. Ne5 {[%clk 0:02:37]}  Qc7 {[%clk 0:01:35]} 19. Rd3 {[%clk 0:02:08]}  Rcd8 {[%clk 0:01:35]} 20. Rg3 {[%clk 0:02:07]}  f5 {[%clk 0:01:36]} 21. Qe2 {[%clk 0:02:01]}  Bf6 {[%clk 0:01:33]} 22. Nc4 {[%clk 0:01:58]}  bxc5 {[%clk 0:01:11]} 23. dxc5 {[%clk 0:01:57]}  Bxb2 {[%clk 0:01:03]} 24. Qxb2 {[%clk 0:01:55]}  f4 {[%clk 0:00:51]} 25. Rg4 {[%clk 0:01:46]}  Rd5 {[%clk 0:00:51]} 26. Nd6 {[%clk 0:01:39]}  Rxc5 {[%clk 0:00:42]} 27. Ne4 {[%clk 0:01:16]}  Rcf5 {[%clk 0:00:39]} 28. Ng5 {[%clk 0:01:13]}  Bc8 {[%clk 0:00:29]} 29. Nxe6 {[%clk 0:01:05]}  Bxe6 {[%clk 0:00:29]} 30. Rxe6 {[%clk 0:01:06]}  Qd7 {[%clk 0:00:21]} 31. Re1 {[%clk 0:01:05]}  R5f7 {[%clk 0:00:13]} 32. h3 {[%clk 0:01:00]}  f3 {[%clk 0:00:14]} 33. g3 {[%clk 0:00:54]}  h5 {[%clk 0:00:12]} 34. Rh4 {[%clk 0:00:54]}  Re8 {[%clk 0:00:10]} 35. Qc3 {[%clk 0:00:23]}  Rxe1+ {[%clk 0:00:10]} 36. Qxe1 {[%clk 0:00:24]}  Re7 {[%clk 0:00:10]} 37. Re4 {[%clk 0:00:19]}  Qxh3 {[%clk 0:00:09]} 0-1


[Site "https://www.chess.com"]

[Event "Titled Tuesday Blitz May 17 Late 2022"]
[White "Kozak, Adam"]
[Black "Wagner, Dennis"]
[WhiteFideId "753246"]
[BlackFideId "24650684"]
[WhiteElo "2459"]
[BlackElo "2355"]
[Result "1/2-1/2"]
[Round "10"]
[TimeControl "180+1"]
[Date "2022.05.17"]
[WhiteClock "0:01:20"]
[BlackClock "0:00:03"]

1. Nf3 {[%clk 0:02:59]}  g6 {[%clk 0:02:59]} 2. c4 {[%clk 0:02:59]}  Bg7 {[%clk 0:02:59]} 3. Nc3 {[%clk 0:03:00]}  e5 {[%clk 0:02:58]} 4. d4 {[%clk 0:02:59]}  exd4 {[%clk 0:02:59]} 5. Nxd4 {[%clk 0:03:00]}  Nc6 {[%clk 0:02:57]} 6. Nxc6 {[%clk 0:02:59]}  bxc6 {[%clk 0:02:57]} 7. g3 {[%clk 0:03:00]}  Nf6 {[%clk 0:02:56]} 8. Bg2 {[%clk 0:03:00]}  O-O {[%clk 0:02:56]} 9. O-O {[%clk 0:03:01]}  Rb8 {[%clk 0:02:48]} 10. b3 {[%clk 0:02:59]}  d5 {[%clk 0:02:48]} 11. cxd5 {[%clk 0:02:55]}  cxd5 {[%clk 0:02:48]} 12. Ba3 {[%clk 0:02:54]}  Re8 {[%clk 0:02:46]} 13. Rc1 {[%clk 0:02:54]}  c6 {[%clk 0:02:40]} 14. Re1 {[%clk 0:02:50]}  h5 {[%clk 0:02:18]} 15. Bc5 {[%clk 0:02:29]}  a5 {[%clk 0:02:03]} 16. e4 {[%clk 0:02:23]}  Bg4 {[%clk 0:02:02]} 17. Qd2 {[%clk 0:02:22]}  dxe4 {[%clk 0:01:33]} 18. Qxd8 {[%clk 0:02:21]}  Rbxd8 {[%clk 0:01:34]} 19. Nxe4 {[%clk 0:02:16]}  Nxe4 {[%clk 0:01:34]} 20. Rxe4 {[%clk 0:02:15]}  Rxe4 {[%clk 0:01:33]} 21. Bxe4 {[%clk 0:02:16]}  Bh3 {[%clk 0:01:23]} 22. Be3 {[%clk 0:02:11]}  Bb2 {[%clk 0:01:05]} 23. Rb1 {[%clk 0:02:10]}  Bc3 {[%clk 0:00:45]} 24. Bxc6 {[%clk 0:02:09]}  Bb4 {[%clk 0:00:42]} 25. Bg2 {[%clk 0:02:06]}  Bxg2 {[%clk 0:00:37]} 26. Kxg2 {[%clk 0:02:06]}  Ra8 {[%clk 0:00:28]} 27. Bd4 {[%clk 0:01:53]}  a4 {[%clk 0:00:21]} 28. bxa4 {[%clk 0:01:47]}  Rxa4 {[%clk 0:00:22]} 29. Bf6 {[%clk 0:01:46]}  Kh7 {[%clk 0:00:07]} 30. h4 {[%clk 0:01:41]}  Ra6 {[%clk 0:00:06]} 31. Rxb4 {[%clk 0:01:33]}  Rxf6 {[%clk 0:00:05]} 32. Rb2 {[%clk 0:01:34]}  Ra6 {[%clk 0:00:05]} 33. Kf3 {[%clk 0:01:34]}  Kg7 {[%clk 0:00:06]} 34. Ke4 {[%clk 0:01:35]}  Kf6 {[%clk 0:00:06]} 35. Kd5 {[%clk 0:01:35]}  Kf5 {[%clk 0:00:06]} 36. Kc5 {[%clk 0:01:36]}  Kg4 {[%clk 0:00:06]} 37. Kb5 {[%clk 0:01:33]}  Ra3 {[%clk 0:00:06]} 38. Kb4 {[%clk 0:01:33]}  Ra8 {[%clk 0:00:06]} 39. a4 {[%clk 0:01:34]}  f6 {[%clk 0:00:06]} 40. a5 {[%clk 0:01:33]}  g5 {[%clk 0:00:07]} 41. Ka4 {[%clk 0:01:26]}  gxh4 {[%clk 0:00:06]} 42. Rb4+ {[%clk 0:01:26]}  Kf3 {[%clk 0:00:06]} 43. Rf4+ {[%clk 0:01:27]}  Kg2 {[%clk 0:00:06]} 44. gxh4 {[%clk 0:01:27]}  Kh3 {[%clk 0:00:04]} 45. Kb5 {[%clk 0:01:24]}  Rb8+ {[%clk 0:00:05]} 46. Kc6 {[%clk 0:01:25]}  Rc8+ {[%clk 0:00:04]} 47. Kb5 {[%clk 0:01:24]}  Rb8+ {[%clk 0:00:04]} 48. Kc6 {[%clk 0:01:24]}  Ra8 {[%clk 0:00:04]} 49. Kb6 {[%clk 0:01:25]}  Rb8+ {[%clk 0:00:03]} 50. Kc6 {[%clk 0:01:20]} 1/2-1/2


[Site "https://www.chess.com"]

[Event "Titled Tuesday Blitz May 17 Late 2022"]
[White "Kruckenhauser, Arthur"]
[Black "Kobo, Ori"]
[WhiteFideId "1642812"]
[BlackFideId "2812320"]
[WhiteElo "2243"]
[BlackElo "2420"]
[Result "0-1"]
[Round "10"]
[TimeControl "180+1"]
[Date "2022.05.17"]
[WhiteClock "0:00:22"]
[BlackClock "0:00:15"]

1. e4 {[%clk 0:02:58]}  g6 {[%clk 0:02:59]} 2. h4 {[%clk 0:02:56]}  Nf6 {[%clk 0:02:58]} 3. e5 {[%clk 0:02:54]}  Nh5 {[%clk 0:02:58]} 4. d4 {[%clk 0:02:53]}  d6 {[%clk 0:02:58]} 5. Nf3 {[%clk 0:02:53]}  Nc6 {[%clk 0:02:49]} 6. e6 {[%clk 0:02:50]}  fxe6 {[%clk 0:02:45]} 7. Ng5 {[%clk 0:02:50]}  Bg7 {[%clk 0:02:34]} 8. c3 {[%clk 0:02:50]}  h6 {[%clk 0:02:12]} 9. Bd3 {[%clk 0:02:44]}  hxg5 {[%clk 0:02:11]} 10. Bxg6+ {[%clk 0:02:43]}  Kd7 {[%clk 0:02:12]} 11. Bxh5 {[%clk 0:02:39]}  gxh4 {[%clk 0:01:37]} 12. Rxh4 {[%clk 0:02:39]}  Bf6 {[%clk 0:01:33]} 13. Rh3 {[%clk 0:02:36]}  Qf8 {[%clk 0:01:31]} 14. Nd2 {[%clk 0:02:33]}  Kd8 {[%clk 0:01:24]} 15. Bg4 {[%clk 0:02:29]}  e5 {[%clk 0:01:17]} 16. Bxc8 {[%clk 0:02:28]}  Rxc8 {[%clk 0:01:18]} 17. d5 {[%clk 0:02:10]}  Nb8 {[%clk 0:01:09]} 18. Ne4 {[%clk 0:01:59]}  Nd7 {[%clk 0:01:05]} 19. Be3 {[%clk 0:01:59]}  Rxh3 {[%clk 0:00:52]} 20. gxh3 {[%clk 0:01:59]}  Qg8 {[%clk 0:00:52]} 21. Qg4 {[%clk 0:01:54]}  Qxd5 {[%clk 0:00:44]} 22. h4 {[%clk 0:01:30]}  c5 {[%clk 0:00:36]} 23. h5 {[%clk 0:01:24]}  Kc7 {[%clk 0:00:34]} 24. Rd1 {[%clk 0:01:17]}  Qf7 {[%clk 0:00:28]} 25. Ng3 {[%clk 0:00:59]}  Nb6 {[%clk 0:00:22]} 26. h6 {[%clk 0:00:56]}  Rg8 {[%clk 0:00:20]} 27. Qf5 {[%clk 0:00:54]}  Rh8 {[%clk 0:00:11]} 28. Ne4 {[%clk 0:00:43]}  Nd5 {[%clk 0:00:11]} 29. Ng5 {[%clk 0:00:33]}  Nxe3 {[%clk 0:00:04]} 30. fxe3 {[%clk 0:00:26]}  Qg8 {[%clk 0:00:03]} 31. Ne4 {[%clk 0:00:22]}  Qg1+ {[%clk 0:00:02]} 32. Kd2 {[%clk 0:00:22]}  Qg2+ {[%clk 0:00:03]} 33. Kc1 {[%clk 0:00:23]}  Rxh6 {[%clk 0:00:02]} 34. Nxc5 {[%clk 0:00:21]}  Rh1 {[%clk 0:00:01]} 35. Qd7+ {[%clk 0:00:21]}  Kb6 {[%clk 0:00:02]} 36. Na4+ {[%clk 0:00:18]}  Ka6 {[%clk 0:00:02]} 37. Rxh1 {[%clk 0:00:15]}  Qxh1+ {[%clk 0:00:03]} 38. Kc2 {[%clk 0:00:16]}  Qg2+ {[%clk 0:00:04]} 39. Kb3 {[%clk 0:00:16]}  Qc6 {[%clk 0:00:04]} 40. Qe6 {[%clk 0:00:10]}  Qb5+ {[%clk 0:00:04]} 41. Ka3 {[%clk 0:00:11]}  Qc6 {[%clk 0:00:03]} 42. b3 {[%clk 0:00:11]}  b5 {[%clk 0:00:04]} 43. Nb2 {[%clk 0:00:11]}  Qxc3 {[%clk 0:00:03]} 44. Nd3 {[%clk 0:00:08]}  Qxd3 {[%clk 0:00:03]} 45. Qc8+ {[%clk 0:00:08]}  Kb6 {[%clk 0:00:03]} 46. Qb8+ {[%clk 0:00:09]}  Kc6 {[%clk 0:00:03]} 47. Qc8+ {[%clk 0:00:09]}  Kd5 {[%clk 0:00:03]} 48. e4+ {[%clk 0:00:10]}  Kxe4 {[%clk 0:00:03]} 49. Qg4+ {[%clk 0:00:10]}  Ke3 {[%clk 0:00:04]} 50. Qg3+ {[%clk 0:00:10]}  Kd2 {[%clk 0:00:05]} 51. Qf2+ {[%clk 0:00:10]}  Qe2 {[%clk 0:00:05]} 52. Qxa7 {[%clk 0:00:11]}  e4 {[%clk 0:00:05]} 53. Qa5+ {[%clk 0:00:10]}  Bc3 {[%clk 0:00:05]} 54. Qd8 {[%clk 0:00:10]}  b4+ {[%clk 0:00:06]} 55. Ka4 {[%clk 0:00:10]}  Qa6+ {[%clk 0:00:06]} 56. Qa5 {[%clk 0:00:10]}  Qxa5+ {[%clk 0:00:07]} 57. Kxa5 {[%clk 0:00:11]}  e3 {[%clk 0:00:07]} 58. a4 {[%clk 0:00:12]}  bxa3+ {[%clk 0:00:08]} 59. Kb5 {[%clk 0:00:13]}  a2 {[%clk 0:00:09]} 60. Kc4 {[%clk 0:00:13]}  a1=Q {[%clk 0:00:09]} 61. b4 {[%clk 0:00:14]}  Qb2 {[%clk 0:00:10]} 62. b5 {[%clk 0:00:15]}  Qb4+ {[%clk 0:00:10]} 63. Kd5 {[%clk 0:00:15]}  Qxb5+ {[%clk 0:00:11]} 64. Ke6 {[%clk 0:00:15]}  Qe5+ {[%clk 0:00:12]} 65. Kd7 {[%clk 0:00:16]}  e2 {[%clk 0:00:13]} 66. Kd8 {[%clk 0:00:17]}  d5 {[%clk 0:00:13]} 67. Ke8 {[%clk 0:00:18]}  d4 {[%clk 0:00:14]} 68. Kd8 {[%clk 0:00:19]}  d3 {[%clk 0:00:15]} 69. Ke8 {[%clk 0:00:20]}  e1=Q {[%clk 0:00:15]} 70. Kd8 {[%clk 0:00:21]}  Qh4 {[%clk 0:00:15]} 71. Ke8 {[%clk 0:00:22]}  Qhh8+ {[%clk 0:00:15]} 72. Kf7 {[%clk 0:00:22]}  Qef6# {[%clk 0:00:15]} 0-1


[Site "https://www.chess.com"]

[Event "Titled Tuesday Blitz May 17 Late 2022"]
[White "Moral Garcia, Serafin"]
[Black "Rustemov, Alexander"]
[WhiteFideId "2201925"]
[BlackFideId "4119002"]
[WhiteElo "2228"]
[BlackElo "2802"]
[Result "0-1"]
[Round "10"]
[TimeControl "180+1"]
[Date "2022.05.17"]
[WhiteClock "0:01:02"]
[BlackClock "0:01:05"]

1. e4 {[%clk 0:03:00]}  e6 {[%clk 0:03:00]} 2. d4 {[%clk 0:02:57]}  d5 {[%clk 0:03:00]} 3. Nd2 {[%clk 0:02:57]}  dxe4 {[%clk 0:03:00]} 4. Nxe4 {[%clk 0:02:57]}  Bd7 {[%clk 0:03:01]} 5. Nf3 {[%clk 0:02:57]}  Bc6 {[%clk 0:03:02]} 6. Bd3 {[%clk 0:02:57]}  Nd7 {[%clk 0:03:02]} 7. O-O {[%clk 0:02:55]}  Ngf6 {[%clk 0:03:03]} 8. Ng3 {[%clk 0:02:54]}  Be7 {[%clk 0:03:03]} 9. Re1 {[%clk 0:02:54]}  O-O {[%clk 0:03:03]} 10. c4 {[%clk 0:02:54]}  Bb4 {[%clk 0:03:03]} 11. Bd2 {[%clk 0:02:52]}  Bxf3 {[%clk 0:03:02]} 12. gxf3 {[%clk 0:02:51]}  Bxd2 {[%clk 0:03:01]} 13. Qxd2 {[%clk 0:02:51]}  c5 {[%clk 0:02:54]} 14. Bc2 {[%clk 0:02:41]}  cxd4 {[%clk 0:02:52]} 15. Qxd4 {[%clk 0:02:40]}  Qb6 {[%clk 0:02:44]} 16. Rad1 {[%clk 0:02:39]}  Qxd4 {[%clk 0:02:42]} 17. Rxd4 {[%clk 0:02:39]}  a5 {[%clk 0:02:40]} 18. b3 {[%clk 0:02:36]}  Rfd8 {[%clk 0:02:18]} 19. Red1 {[%clk 0:02:35]}  Kf8 {[%clk 0:02:16]} 20. Ne4 {[%clk 0:02:27]}  Ke7 {[%clk 0:02:15]} 21. Nxf6 {[%clk 0:02:27]}  Nxf6 {[%clk 0:02:14]} 22. a3 {[%clk 0:02:26]}  Rxd4 {[%clk 0:02:08]} 23. Rxd4 {[%clk 0:02:25]}  b6 {[%clk 0:02:04]} 24. Kf1 {[%clk 0:02:24]}  h6 {[%clk 0:01:53]} 25. Ke2 {[%clk 0:02:21]}  Nd7 {[%clk 0:01:48]} 26. Ke3 {[%clk 0:02:12]}  Nc5 {[%clk 0:01:37]} 27. Rd1 {[%clk 0:02:02]}  g6 {[%clk 0:01:31]} 28. Rd2 {[%clk 0:01:53]}  f5 {[%clk 0:01:26]} 29. f4 {[%clk 0:01:46]}  g5 {[%clk 0:01:26]} 30. Rd1 {[%clk 0:01:41]}  g4 {[%clk 0:01:24]} 31. h3 {[%clk 0:01:37]}  h5 {[%clk 0:01:24]} 32. hxg4 {[%clk 0:01:37]}  hxg4 {[%clk 0:01:20]} 33. Rh1 {[%clk 0:01:36]}  Nd7 {[%clk 0:01:12]} 34. Rh7+ {[%clk 0:01:22]}  Kd6 {[%clk 0:01:12]} 35. Rg7 {[%clk 0:01:21]}  Rh8 {[%clk 0:01:08]} 36. Bd1 {[%clk 0:01:07]}  Rh3+ {[%clk 0:01:08]} 37. Kd2 {[%clk 0:01:07]}  Nc5 {[%clk 0:01:07]} 38. b4 {[%clk 0:01:02]}  axb4 {[%clk 0:01:06]} 39. axb4 {[%clk 0:01:03]}  Ne4+ {[%clk 0:01:06]} 40. Ke1 {[%clk 0:01:02]}  Rh1+ {[%clk 0:01:05]} 0-1


[Site "https://www.chess.com"]

[Event "Titled Tuesday Blitz May 17 Late 2022"]
[White "Ohanyan, Emin"]
[Black "Gurevich, Dmitry"]
[WhiteFideId "13312022"]
[BlackFideId "2000407"]
[WhiteElo "1927"]
[BlackElo "2506"]
[Result "1-0"]
[Round "10"]
[TimeControl "180+1"]
[Date "2022.05.17"]
[WhiteClock "0:00:02"]
[BlackClock "0:00:01"]

1. e4 {[%clk 0:02:37]}  c5 {[%clk 0:02:58]} 2. Nf3 {[%clk 0:02:37]}  d6 {[%clk 0:02:58]} 3. d4 {[%clk 0:02:37]}  cxd4 {[%clk 0:02:58]} 4. Nxd4 {[%clk 0:02:38]}  Nf6 {[%clk 0:02:58]} 5. Nc3 {[%clk 0:02:38]}  Nc6 {[%clk 0:02:58]} 6. Bc4 {[%clk 0:02:37]}  Bd7 {[%clk 0:02:54]} 7. Bb3 {[%clk 0:02:36]}  g6 {[%clk 0:02:52]} 8. O-O {[%clk 0:02:35]}  Bg7 {[%clk 0:02:50]} 9. Nxc6 {[%clk 0:02:16]}  Bxc6 {[%clk 0:02:46]} 10. f3 {[%clk 0:02:16]}  O-O {[%clk 0:02:46]} 11. Be3 {[%clk 0:02:16]}  b5 {[%clk 0:02:42]} 12. Qd2 {[%clk 0:02:14]}  a5 {[%clk 0:02:41]} 13. a4 {[%clk 0:02:00]}  b4 {[%clk 0:02:34]} 14. Nb5 {[%clk 0:01:59]}  Bxb5 {[%clk 0:02:24]} 15. axb5 {[%clk 0:02:00]}  Qb8 {[%clk 0:02:13]} 16. b6 {[%clk 0:00:46]}  Rc8 {[%clk 0:02:05]} 17. Ra4 {[%clk 0:00:40]}  Ra6 {[%clk 0:01:58]} 18. Rfa1 {[%clk 0:00:38]}  Rxb6 {[%clk 0:01:42]} 19. Bxb6 {[%clk 0:00:36]}  Qxb6+ {[%clk 0:01:41]} 20. Qf2 {[%clk 0:00:36]}  Nd7 {[%clk 0:01:13]} 21. Qxb6 {[%clk 0:00:34]}  Nxb6 {[%clk 0:01:14]} 22. Rxa5 {[%clk 0:00:35]}  Bxb2 {[%clk 0:01:13]} 23. R1a2 {[%clk 0:00:34]}  Bc3 {[%clk 0:01:08]} 24. Rb5 {[%clk 0:00:29]}  Nd7 {[%clk 0:01:04]} 25. Ra7 {[%clk 0:00:27]}  Bd4+ {[%clk 0:01:03]} 26. Kf1 {[%clk 0:00:23]}  Bxa7 {[%clk 0:01:02]} 27. Rb7 {[%clk 0:00:24]}  Nc5 {[%clk 0:00:42]} 28. Rxa7 {[%clk 0:00:24]}  Kf8 {[%clk 0:00:41]} 29. Ba2 {[%clk 0:00:13]}  Ne6 {[%clk 0:00:28]} 30. Bxe6 {[%clk 0:00:11]}  fxe6 {[%clk 0:00:29]} 31. Rb7 {[%clk 0:00:11]}  Rc4 {[%clk 0:00:29]} 32. h3 {[%clk 0:00:04]}  g5 {[%clk 0:00:26]} 33. Kg1 {[%clk 0:00:04]}  h5 {[%clk 0:00:25]} 34. Rb5 {[%clk 0:00:04]}  e5 {[%clk 0:00:24]} 35. Kh2 {[%clk 0:00:03]}  h4 {[%clk 0:00:20]} 36. Kg1 {[%clk 0:00:03]}  Ke8 {[%clk 0:00:19]} 37. Rb7 {[%clk 0:00:03]}  Kd8 {[%clk 0:00:19]} 38. Kf1 {[%clk 0:00:04]}  Kc8 {[%clk 0:00:17]} 39. Rxe7 {[%clk 0:00:03]}  Rxc2 {[%clk 0:00:17]} 40. Re8+ {[%clk 0:00:03]}  Kc7 {[%clk 0:00:16]} 41. Re7+ {[%clk 0:00:03]}  Kb6 {[%clk 0:00:15]} 42. Re8 {[%clk 0:00:04]}  Rc7 {[%clk 0:00:13]} 43. Ke2 {[%clk 0:00:03]}  b3 {[%clk 0:00:09]} 44. Kd2 {[%clk 0:00:01]}  Rb7 {[%clk 0:00:04]} 45. Kc1 {[%clk 0:00:01]}  Kc5 {[%clk 0:00:03]} 46. Re6 {[%clk 0:00:01]}  Kd4 {[%clk 0:00:03]} 47. Rxd6+ {[%clk 0:00:01]}  Ke3 {[%clk 0:00:03]} 48. Rg6 {[%clk 0:00:01]}  Kf4 {[%clk 0:00:02]} 49. Kb2 {[%clk 0:00:02]}  Rb8 {[%clk 0:00:01]} 50. Rf6+ {[%clk 0:00:02]} 1-0


[Site "https://www.chess.com"]